[Event "Budapest GM ONE WEEK Feb 2024"]
[Site "Budapest"]
[Date "2024.03.02"]
[Round "9.3"]
[White "Pasti, Aron"]
[Black "Bodi, Tibor"]
[Result "1-0"]
[ECO "B12"]
[WhiteElo "2389"]
[BlackElo "2294"]
[Annotator "TA"]
[PlyCount "59"]
[EventDate "2024.02.25"]
[EventType "tourn"]
[EventCountry "HUN"]
[SourceTitle "playchess.com"]
[Source "ChessBase"]
[SourceQuality "1"]
[TimeControl "5400+30"]

{[%evp 9,59,19,24,7,8,-7,56,47,65,55,68,57,53,39,74,36,47,50,36,45,60,51,50,48,156,172,162,172,164,156,233,201,190,199,291,291,307,264,431,349,438,426,716,687,816,808,942,939,808,564,462,-74]} 1. e4 c6 2. d4 d5 3. e5 c5 4. dxc5 Nc6 5. Nf3 Bg4 6. a3 e6 7. b4 Qc7 (7... a5 $11 8. c3 Nxe5) 8. Bb2 {White is slightly better.} g6 9. Bb5 Bg7 10. Nbd2 Nge7 11. O-O O-O 12. Re1 a5 13. Bxc6 Nxc6 14. b5 Nb8 {[%cal Ob8d7]} 15. Bd4 Nd7 16. c4 $1 Nxc5 (16... Bxf3 $1 $14 17. Nxf3 dxc4) 17. cxd5 $16 exd5 {[#]} 18. Rc1 $1 {[%cal Ba1c1,Bc1c5,Bc5d5,Bd5d6][%mdl 32]} b6 19. Nb3 $36 {[%mdl 2048] White is on the roll.} Qd7 (19... Qb7 $16) 20. Bxc5 $18 bxc5 21. Rxc5 Rfe8 (21... a4 {keeps fighting.}) 22. Rxd5 Qe7 23. a4 Rac8 $2 (23... Rad8 {was worth a try.} 24. h3 (24. Nxa5 Rxd5 25. Qxd5 Bxf3 $11) 24... Rxd5 25. Qxd5 Be6) 24. h3 Be6 25. Rd6 {White is clearly winning.} Rc4 (25... Qa7 $142 26. Nbd4 Bf8 27. Nxe6 fxe6) 26. Nxa5 Rf4 27. Nc6 Qc7 {[#]} 28. b6 $1 Qb7 (28... Qc8 29. Ne7+) 29. Na5 Qa8 30. b7 $2 {[%mdl 32768] Weighted Error Value: White=0.27 (precise) /Black=0.38.  Mistake:       	---       	Black=6      Inaccurate:     	White=1     	Black=1      OK:         	White=7     	Black=4      Best:        	White=3     	---        Strong:       	White=2     	---       . Loss on time!?} ({White should play} 30. Rxe6 $18 fxe6 31. Qd7) 1-0

[Event "Budapest GM ONE WEEK Feb 2024"]
[Site "Budapest"]
[Date "2024.03.02"]
[Round "9.4"]
[White "Gaal, Zsoka"]
[Black "Pribelszky, Bence"]
[Result "1/2-1/2"]
[ECO "A47"]
[WhiteElo "2341"]
[BlackElo "2371"]
[Annotator "TA"]
[PlyCount "72"]
[EventDate "2024.02.25"]
[EventType "tourn"]
[EventCountry "HUN"]
[SourceTitle "playchess.com"]
[Source "ChessBase"]
[SourceQuality "1"]
[TimeControl "5400+30"]

{[%evp 15,72,-3,9,-19,0,0,10,7,0,-17,-6,-8,-10,-14,-13,-12,20,26,22,22,22,-14,0,0,50,0,0,0,0,0,0,0,0,0,0,0,0,0,0,0,0,0,0,0,0,0,0,0,0,0,0,0,0,0,0,0,0,0,0]} 1. Nf3 {[%emt 0:00:10]} Nf6 {[%emt 0:08:15]} 2. g3 {[%emt 0:00:13]} b6 {[%emt 0:02:07]} 3. Bg2 {[%emt 0:00:13]} Bb7 {[%emt 0:00:05]} 4. d4 {[%emt 0:00:12]} c5 {[%emt 0:00:23]} 5. dxc5 {[%emt 0:07:24]} bxc5 {[%emt 0:00:25]} 6. c4 {[%emt 0:00:29]} g6 {[%emt 0:03:26]} 7. Nc3 {[%emt 0:05:55]} Bg7 {[%emt 0:00:08]} 8. O-O {[%emt 0:04:30]} O-O {[%emt 0:00:08]} 9. Nd5 {[%emt 0:00:32]} Nxd5 {[%emt 0:15:16]} 10. cxd5 {[%emt 0:00:07]} d6 {[%emt 0:00:06]} 11. e4 {[%emt 0:09:48]} Nd7 {[%emt 0:00:48]} 12. Qa4 {[%emt 0:08:47]} a5 {[%emt 0:13:19]} 13. Re1 {[%emt 0:05:18]} Ba6 {[%emt 0:04:21]} 14. Qc2 {[%emt 0:03:39] Wards off Bd3} Qb6 {[%emt 0:20:57]} 15. Rb1 {[%emt 0:00:56]} Qb4 {[%emt 0:02:07]} 16. Bd2 {[%emt 0:10:34]} Qc4 {[%emt 0:00:22]} 17. Bc3 {[%emt 0:00:13]} Qd3 {[%emt 0:00:38]} 18. Qa4 {[%emt 0:00:45]} Bxc3 {[%emt 0:10:30]} (18... Nb6 {simplifies} 19. Qxa5 Rfb8 20. Bxg7 Kxg7 21. Qd2 Qxd2 22. Nxd2 Na4) 19. bxc3 {[%emt 0:00:32]} Nf6 {[%emt 0:00:27]} ({Black should play} 19... Rfd8 $11) 20. e5 {[%emt 0:03:31]} (20. Rbc1 $14) 20... Nxd5 $11 {[%emt 0:06:07][%cal Bf6d5,Bd5c3,Bc3b1][%mdl 32] The position is equal.} 21. Qh4 {[%emt 0:01:26]} (21. exd6 Nxc3 (21... Qxc3 $2 22. dxe7 Nxe7 23. Rxe7 $18) 22. Qh4 Qxd6 $15 (22... Nxb1 23. dxe7 Rfe8 24. Ng5 $17)) 21... Nxc3 {[%emt 0:01:52]} (21... Qxc3 $2 22. Ng5 h5 23. Bxd5 $18) 22. Qh6 {[%emt 0:10:35]} f6 {[%emt 0:05:09] Dodges Ng5} (22... Nxb1 23. Ng5) 23. exf6 {[%emt 0:00:34]} exf6 {[%emt 0:00:06]} ({Worse is} 23... Nxb1 24. Qg7#) (23... Rxf6 $2 24. Ng5 Rf7 25. Bxa8 $18 (25. Nxf7 Ne2+ 26. Kh1 Kxf7 $18)) 24. Bf1 {[%emt 0:11:45]} Qxb1 {[%emt 0:00:03]} (24... Qxf3 $5 25. Re7 $8 Rf7 (25... Nxb1 26. Qxh7#) 26. Rxf7 Kxf7 27. Qxh7+ Kf8 (27... Ke6 28. Bh3+ f5 29. Qxg6+ Kd7 30. Bg2 $11) 28. Qh6+ Ke7 29. Qh7+ Ke6 30. Bh3+ f5 31. Qxg6+ Ke7 32. Qg7+ Ke6 $11 (32... Kd8 33. Bg2 $11)) 25. Rxb1 {[%emt 0:01:11]} Nxb1 {[%emt 0:00:02]} 26. Nh4 {[%emt 0:05:09][%cal Oh4g6] [#] Strongly threatening Nxg6!} Bxf1 {[%emt 0:01:50]} 27. Kxf1 {[%emt 0:01:15]} Rf7 {[%emt 0:03:46]} 28. Nxg6 $1 {[%emt 0:00:08] Nh4 is the strong threat.} Nd2+ {[%emt 0:00:47]} 29. Qxd2 {[%emt 0:00:38]} hxg6 {[%emt 0:00:03]} 30. Qxd6 {[%emt 0:00:08][%mdl 4096] Endgame. KQ-KRR} Rc8 {[%emt 0:00:51]} 31. Qa6 {[%emt 0:00:08][%csl LRa5,LRc8]} Rcc7 {[%emt 0:00:13] [#] And now ...c4 would win.} 32. Qxa5 {[%emt 0:00:16]} c4 {[%emt 0:00:09] ...c3 would now be deadly.} 33. Qc3 {[%emt 0:00:04]} Kg7 {[%emt 0:00:54]} 34. h4 {[%emt 0:02:19]} Rfd7 {[%emt 0:00:09]} 35. g4 {[%emt 0:00:06]} Rd3 {[%emt 0:00:31]} 36. Qa5 {[%emt 0:00:52]} Rdd7 {[%emt 0:01:35] An interesting draw.   Weighted Error Value: White=0.06 (flawless) /Black=0.05 (flawless) .  Mistake:       	White=1     	Black=1      Inaccurate:     	White=1     	Black=1      OK:         	White=17    	Black=12     Best:        	White=2     	Black=3      Strong:       	White=1     	---} 1/2-1/2

[Event "Budapest GM ONE WEEK Feb 2024"]
[Site "Budapest"]
[Date "2024.03.02"]
[Round "9.5"]
[White "Paszewski, Mateusz"]
[Black "Tomic, Aleksandar"]
[Result "0-1"]
[ECO "B01"]
[WhiteElo "2286"]
[BlackElo "2398"]
[Annotator "TA"]
[PlyCount "82"]
[EventDate "2024.02.25"]
[EventType "tourn"]
[EventCountry "HUN"]
[SourceTitle "playchess.com"]
[Source "ChessBase"]
[SourceQuality "1"]
[TimeControl "5400+30"]

{[%evp 11,82,56,55,43,50,49,48,42,54,52,52,37,45,39,46,29,43,0,25,9,23,0,37,58,65,19,34,31,10,10,71,8,22,18,36,35,53,67,39,0,0,0,0,-8,59,70,67,63,64,30,36,42,27,31,28,-60,-42,-75,-70,-75,-72,-121,-125,-122,-120,-424,-423,-749,-736,-696,-689,-655,-647]} 1. e4 {[%emt 0:00:21]} d5 {[%emt 0:00:15]} 2. exd5 {[%emt 0:00:10]} Nf6 {[%emt 0:00:10]} 3. Nf3 {[%emt 0:00:13]} Nxd5 {[%emt 0:00:30]} 4. d4 {[%emt 0:00:38]} Bf5 {[%emt 0:00:12]} 5. Bd3 {[%emt 0:01:26]} Bxd3 {[%emt 0:00:15]} 6. Qxd3 {[%emt 0:00:01]} c6 {[%emt 0:00:14]} 7. O-O {[%emt 0:02:33]} e6 {[%emt 0:00:44]} 8. c4 {[%emt 0:03:58]} Nf6 {[%emt 0:00:11]} 9. Nc3 {[%emt 0:00:10] White is slightly better.} Be7 {[%emt 0:00:26]} 10. Bf4 {[%emt 0:04:21]} Nbd7 {[%emt 0:00:37][%cal Bb8d7,Bd7f8,Bf8g6][%mdl 32]} 11. Rad1 {[%emt 0:00:43]} O-O {[%emt 0:04:00]} 12. Rfe1 {[%emt 0:09:32]} Re8 {[%emt 0:04:26]} 13. Qe2 {[%emt 0:12:20]} Qa5 {[%emt 0:01:45]} 14. Rd3 {[%emt 0:04:39]} Nf8 {[%emt 0:05:17]} 15. Ne5 {[%emt 0:03:10]} Rad8 {[%emt 0:05:24]} 16. Red1 {[%emt 0:02:30]} Ng6 {[%emt 0:01:49]} 17. Bg3 {[%emt 0:15:54]} Qa6 {[%emt 0:07:17]} 18. b3 {[%emt 0:01:27]} (18. Qf3 $14) 18... Qa5 {[%emt 0:02:53]} 19. h3 {[%emt 0:08:45]} Bb4 {[%emt 0:06:15]} 20. Nb1 {[%emt 0:02:31]} Rc8 {[%emt 0:09:02]} (20... Be7 $11) 21. Qb2 {[%emt 0:04:25]} (21. h4 $16) 21... Be7 {[%emt 0:10:36]} 22. Nd2 {[%emt 0:04:20]} Ba3 {[%emt 0:01:43]} 23. Qc2 {[%emt 0:00:20]} b5 {[%emt 0:08:18]} 24. Ndf3 {[%emt 0:02:44]} Be7 {[%emt 0:06:19]} 25. Rc3 {[%emt 0:01:49]} (25. Re3 $14 {deserves consideration.}) 25... Ne4 $11 {[%emt 0:01:43]} 26. Re3 {[%emt 0:01:16]} Nxg3 {[%emt 0:01:07]} 27. fxg3 {[%emt 0:00:02]} c5 {[%emt 0:02:01]} (27... Qc7 $11) 28. Nxg6 $14 {[%emt 0:02:44]} hxg6 {[%emt 0:00:35]} 29. d5 {[%emt 0:00:02]} exd5 {[%emt 0:02:21]} 30. Rxd5 {[%emt 0:00:55] Strongly threatening Qe2.} Bf8 {[%emt 0:02:57]} 31. Rxe8 {[%emt 0:02:31]} Rxe8 {[%emt 0:00:02]} 32. cxb5 {[%emt 0:01:28]} Qxb5 {[%emt 0:00:27]} 33. Ne5 {[%emt 0:00:20]} (33. Kh2 $11) 33... Qb8 $15 {[%emt 0:04:42]} 34. Qc3 {[%emt 0:02:44]} Bd6 $1 {[%emt 0:01:18]} 35. Nf3 {[%emt 0:00:24]} Bxg3 {[%emt 0:00:44]} 36. Rxc5 {[%emt 0:00:23]} (36. Kh1 $142) 36... Qb6 $1 $36 {[%emt 0:01:14][%mdl 2048] Keeping White busy.} 37. Kh1 {[%emt 0:01:24]} Qa6 {[%emt 0:01:58] Prevents Rc8. Black is more active.} 38. Kg1 {[%emt 0:03:03][%mdl 8192] [#] Wards off Qf1+. Now White is beyond hope.} (38. Rc4 $17) 38... Qe2 $1 $19 {[%emt 0:01:15] ( -> ...Qd1+). Black is clearly winning.} (38... Qxa2 $2 39. Qc2 Qa6 40. Rc6 $19) 39. Rc8 {[%emt 0:01:56] [#]} (39. Qc1 $142 Bf2+ (39... Qxa2 $2 40. Rc8 $19) 40. Kh2 Bxc5 (40... Qxa2 $2 41. Rc2 $18) 41. Qxc5 Qxa2 42. b4) 39... Qd1+ $1 {[%emt 0:01:19]} 40. Ne1 {[%emt 0:00:01]} Rxc8 {[%emt 0:00:26]} (40... Bxe1 $2 {is the wrong capture.} 41. Rxe8+ Kh7 42. Qxe1 $18 (42. Rxe1 Qd8 $18)) 41. Qxc8+ {[%emt 0:00:02]} Kh7 {[%emt 0:00:27] Weighted Error Value: White=0.40/Black=0.10 (very precise) .  Loses game:     	White=1     	---        Mistake:       	White=6     	Black=2      Inaccurate:     	White=3     	Black=1      OK:         	White=11    	Black=13     Best:        	White=2     	Black=3      Strong:       	---       	Black=4} 0-1

[Event "Budapest GM ONE WEEK Feb 2024"]
[Site "Budapest"]
[Date "2024.03.02"]
[Round "9.5"]
[White "Haszon, David"]
[Black "Polyik, Peter"]
[Result "*"]
[ECO "B01"]
[WhiteElo "2264"]
[BlackElo "2295"]
[Annotator "RC"]
[PlyCount "22"]
[EventDate "2024.02.25"]
[EventType "tourn"]
[EventCountry "HUN"]
[SourceTitle "playchess.com"]
[Source "ChessBase"]
[SourceQuality "1"]
[TimeControl "5400+30"]

1. e4 {[%emt 0:00:21]} d5 {[%emt 0:00:15]} 2. exd5 {[%emt 0:00:10]} Nf6 {[%emt 0:00:10]} 3. Nf3 {[%emt 0:00:13]} Nxd5 {[%emt 0:00:30]} 4. d4 {[%emt 0:00:38]} Bf5 {[%emt 0:00:12]} 5. Bd3 {[%emt 0:01:26]} Bxd3 {[%emt 0:00:15]} 6. Qxd3 {[%emt 0:00:01]} c6 {[%emt 0:00:14]} 7. O-O {[%emt 0:02:33]} e6 {[%emt 0:00:44]} 8. c4 {[%emt 0:03:58]} Nf6 {[%emt 0:00:11]} 9. Nc3 {[%emt 0:00:10]} Be7 {[%emt 0:00:26]} 10. Bf4 {[%emt 0:04:21]} Nbd7 {[%emt 0:00:37]} 11. Rad1 {[%emt 0:00:43]} O-O {[%emt 0:04:00]} *